Cogmind - Beta 16 @@@ ROGUE MODE // 2026.01.25 @ 09:33:11 Player: McSaucyNugget Result: Destroyed by G-34 Mercenary with Small Laser Performance ------------- Evolutions (0) 0 Regions Visited (4) 800 Robots Destroyed (41) 205 Value Destroyed (971) 971 Prototype IDs (0) 0 Alien Tech Used (0) 0 Bonus (0) 0 TOTAL SCORE: 1976 Bonus ------- None Cogmind --------- Core Integrity 0/250 Matter 300/300 Energy 100/100 System Corruption 9% Temperature Cool (6) Movement Treading (240) Ox1 Location -9/Mines Parts ------- > --- POWER (1) -------- (None) > --- PROPULSION (2) --- Light Treads Light Treads > --- UTILITY (2) ------ High-capacity Storage Unit > --- WEAPON (2) ------- Light Assault Rifle Hammer > --- INVENTORY (20) --- Ion Engine Light Treads Light Treads Wheel Wheel Wheel Heat Sink Cooling System Large Storage Unit Large Matter Pod (150) Hacking Suite Hacking Suite Tractor Beam Grenade Launcher Rocket Launcher Peak State ------------ > --- POWER ------------ Ion Engine > --- PROPULSION ------- Light Treads Light Treads > --- UTILITY ---------- Heat Sink High-capacity Storage Unit > --- WEAPON ----------- Beam Cannon Rocket Launcher > --- INVENTORY -------- Light Treads Light Treads Light Treads Light Treads Light Treads Wheel Large Storage Unit Light Armor Plating Hacking Suite Hacking Suite Tractor Beam Particle Gun Beam Cannon Beam Cannon Grenade Launcher Hammer [Rating: 10] Favorites ----------- Power Ion Engine Engine Ion Engine Propulsion Light Treads Treads Light Treads Utility High-capacity Storage Unit Device Heat Sink Storage High-capacity Storage Unit Protection Light Armor Plating Weapon Beam Cannon Energy Gun Particle Gun Energy Cannon Beam Cannon Ballistic Gun Light Assault Rifle Launcher Rocket Launcher Impact Weapon Hammer Build | -11 -10 -10 -10 -9 ------- Run | Yrd Mat Min Exi Min Slots Evolved . | . . . . . Power . | . . . . . Propulsion . | . . . . . Utility . | . . . . . Weapon . | . . . . . Parts Attached 25 | 6 9 5 . 5 Power 3 | 1 1 . . 1 Engine 3 | 1 1 . . 1 Core . | . . . . . Reactor . | . . . . . Propulsion 6 | 2 . 2 . 2 Treads 6 | 2 . 2 . 2 Leg . | . . . . . Wheel . | . . . . . Hover . | . . . . . Flight . | . . . . . Utility 6 | 1 3 1 . 1 Device 1 | . 1 . . . Storage 3 | 1 2 . . . Processor . | . . . . . Hackware . | . . . . . Protection 2 | . . 1 . 1 Artifact . | . . . . . Weapon 10 | 2 5 2 . 1 Energy Gun 4 | 2 2 . . . Energy Cannon 3 | . 2 1 . . Ballistic Gun 1 | . . . . 1 Ballistic Cannon . | . . . . . Launcher 1 | . . 1 . . Special Weapon . | . . . . . Impact Weapon 1 | . 1 . . . Slashing Weapon . | . . . . . Piercing Weapon . | . . . . . Special Melee Weapon . | . . . . . Unidentified Prototypes . | . . . . . Parts Lost 13 | . 3 5 . 5 Power 1 | . 1 . . . Propulsion 4 | . . 2 . 2 Utility 2 | . . 1 . 1 Weapon 6 | . 2 2 . 2 Highest Loss Streak 5 | . 1 5 . 3 To Critical Strikes . | . . . . . Average Backups 12 | 1 9 16 15 16 Power . | . . . . . Propulsion 5 | 1 3 6 6 5 Utility 3 | . 2 5 5 6 Weapon 3 | . 2 5 4 2 Tool/Special . | . . . . . Unused Backups 15 | . 3 . . 12 Power . | . . . . . Propulsion 6 | . 1 . . 5 Utility 7 | . 1 . . 6 Weapon 2 | . 1 . . 1 Tool/Special . | . . . . . Average Slot Usage (%) 94 | . 95 96 85 96 Engine 13 | . 14 14 14 13 Treads 27 | . 28 27 28 27 Device 7 | . 9 10 . . Storage 14 | . 14 14 14 14 Protection 1 | . . . . 11 Energy Gun 7 | . 10 3 14 . Energy Cannon 18 | . 17 24 14 12 Ballistic Gun 1 | . . . . 13 Peak Build Rating 10 | 6 9 10 9 10 Average Rating 8 | 3 7 8 9 9 On Entrance 6 | . 6 9 9 9 Avg Prop Armor Cover (%) . | . . . . . Naked Turns . | . . . . . Heaviest Build 57 | 12 52 54 51 57 Greatest Support 40 | 40 40 40 40 40 Greatest Overweight (x) 1 | . 1 1 1 1 Average Overweight (x) . | . . 1 1 1 Largest Inventory Capacity 20 | 8 20 20 20 20 Average Capacity 17 | 6 14 20 20 20 Most Carried 19 | 4 15 19 16 17 Average Carried 12 | 2 9 16 15 16 Final Capacity 20 | 8 20 20 20 20 Final Carried 16 | 4 15 15 16 15 Class Distribution -------------------- 100% | Mutant Dominant Class ---------------- Mutant | -10/Materials Mutant | -10/Mines Mutant | -10/Exiles Mutant | -9/Mines Resources | -11 -10 -10 -10 -9 ----------- Run | Yrd Mat Min Exi Min Matter Collected 612 | 227 119 107 . 159 Remotely . | . . . . . Salvage Created 1545 | . 1089 262 . 194 Parts 70 | 3 48 10 . 9 Haulers Intercepted 2 | . 2 . . . Recyclers Shooed 2 | . 1 1 . . Parts Field Recycled . | . . . . . Retrieved Matter . | . . . . . Parts Self-Destructed . | . . . . . Prevented . | . . . . . Parts Restored . | . . . . . Kills | -11 -10 -10 -10 -9 ------- Run | Yrd Mat Min Exi Min Combat Hostiles Destroyed 25 | . 14 7 . 4 Melee 1 | . . . . 1 Guns 10 | . 8 1 . 1 Cannons 10 | . 6 2 . 2 AOE 4 | . . 4 . . Classes Destroyed 12 | 1 6 3 . 2 Worker 2 | 1 1 . . . Builder 2 | . . 1 . 1 Tunneler 1 | . 1 . . . Hauler 2 | . 2 . . . Recycler 5 | . 4 1 . . Operator 3 | . 3 . . . Watcher 1 | . 1 . . . Swarmer 4 | . . 4 . . Grunt 18 | . 14 2 . 2 Brawler 1 | . . . . 1 Duelist 1 | . . . . 1 Demolisher 1 | . . 1 . . Best Kill Streak 5 | 1 5 3 . 3 Combat Bots Only 3 | . 3 3 . 3 Max Kills in Single Turn 3 | 1 2 3 . 1 Gunslinging . | . . . . . Exploded 3 | . . 3 . . Melee 1 | . . . . 1 Uniques/NPCs Destroyed . | . . . . . Combat | -11 -10 -10 -10 -9 -------- Run | Yrd Mat Min Exi Min Hostile Shots Fired 149 | . 70 41 . 38 Missed 31 | . 12 11 . 8 Hits 118 | . 58 30 . 30 Melee 13 | . . . . 13 Projectile 105 | . 58 30 . 17 AOE 16 | . . 16 . . Critical Strikes 4 | . . 1 . 3 Damage Taken 2019 | . 677 732 . 610 Core 258 | . 132 68 . 58 Absorbed by Shields . | . . . . . Core Remaining (%) 100 | 100 . . . . Volleys Fired 101 | . 67 22 . 12 Largest 2 | . 2 2 . 2 Hottest 125 | . 120 125 . 125 Shots Fired 198 | . 132 40 . 26 Gun 105 | . 86 6 . 13 Cannon 91 | . 46 32 . 13 Launcher 2 | . . 2 . . Special . | . . . . . Kinetic 9 | . . . . 9 Thermal 151 | . 96 38 . 17 Explosive 2 | . . 2 . . Electromagnetic 36 | . 36 . . . Robot Hit Streak 16 | . 16 15 . 5 Robot Miss Streak 4 | . 3 4 . 3 Penetration Max . | . . . . . Secondary Targets 2 | . 2 . . . Max Gunslinging Chain 1 | . 1 . . . Shots Hit Robots 128 | . 82 29 . 17 Core Hits 52 | . 34 12 . 6 Critical Kills . | . . . . . Critical Parts Destroyed 1 | . . . . 1 Critical Strikes 3 | . 2 . . 1 Burn 2 | . 2 . . . Smash 1 | . . . . 1 Melee Attacks 10 | . 1 . . 9 Impact 10 | . 1 . . 9 Slashing . | . . . . . Piercing . | . . . . . Sneak Attacks . | . . . . . Combat Hostiles . | . . . . . Follow-up Attacks . | . . . . . Damage Inflicted 2309 | . 1258 735 . 316 Guns 901 | . 799 48 . 54 Cannons 998 | . 435 458 . 105 Explosions 248 | . 21 227 . . Melee 157 | . . . . 157 Ramming 5 | . 3 2 . . Kinetic 41 | . . . . 41 Thermal 1507 | . 883 506 . 118 Explosive 227 | . . 227 . . Electromagnetic 372 | . 372 . . . Impact 157 | . . . . 157 Slashing . | . . . . . Piercing . | . . . . . Highest Corruption 9 | . . . . 9 Average Corruption 9 | . . . . 9 Corruption Purged . | . . . . . Corruption Blocked . | . . . . . Effects 13 | . . . . 13 Message Errors 5 | . . . . 5 Matter Fused 2 | . . . . 2 Data Loss (minor) 4 | . . . . 4 Misfires 2 | . . . . 2 Overload Shots . | . . . . . Overflow Damage 71 | . . 42 . 29 Projectiles 42 | . . 42 . . Explosions . | . . . . . Melee 29 | . . . . 29 Knockbacks 2 | . . . . 2 Impact 2 | . . . . 2 Kinetic . | . . . . . Secondary . | . . . . . Self-Inflicted Damage . | . . . . . Shots . | . . . . . Rammed 4 | . 2 2 . . Targets Rammed 5 | 1 2 2 . . Kicked . | . . . . . Crushed 1 | 1 . . . . Highest Temperature 402 | . 402 189 . 342 Average Temperature 108 | . 120 52 . 128 Received Heat Transfer 504 | . 375 27 . 102 Effects 2 | . 1 . . 1 Energy Bleed 1 | . 1 . . . Matter Decay 1 | . . . . 1 Siege Activations . | . . . . . Martial Activations . | . . . . . Shielding Activations . | . . . . . Robots Disrupted . | . . . . . Combat Hostiles . | . . . . . Robots Corrupted . | . . . . . Combat Hostiles . | . . . . . Parts Fried 1 | . 1 . . . Impact Corruptions 1 | . . . . 1 Robots Melted . | . . . . . Combat Hostiles . | . . . . . Parts Melted 2 | . 2 . . . Heat Transferred 3676 | . 2344 1073 . 259 Parts Sabotaged . | . . . . . Parts Stolen . | . . . . . Parts Stripped . | . . . . . Power Chain Reactions 1 | . 1 . . . Alert | -11 -10 -10 -10 -9 ------- Run | Yrd Mat Min Exi Min Maximum Alert Level . | . . . . . Low Security (%) 100 | 100 100 100 . 100 Level 1 . | . . . . . Level 2 . | . . . . . Level 3 . | . . . . . Level 4 . | . . . . . Level 5 . | . . . . . High Security . | . . . . . Max Security . | . . . . . Peak Influence 162 | . 162 127 . 40 Initial 51 | . 3 51 . . Average 42 | . 62 28 . 7 Influence Increases 955 | 5 618 227 . 105 Destroy 0b10 Robot/C 500 | . 280 140 . 80 Destroy 0b10 Robot/NC 80 | 5 60 10 . 5 Destroy Leader 106 | . 66 20 . 20 Successful Hack 20 | . 20 . . . Select Force Hacks 60 | . 60 . . . Disable Machine 60 | . 30 30 . . Destroy Structure 39 | . 27 12 . . Lose Combat Pursuer 90 | . 75 15 . . Influence Decreases 935 | . 492 358 . 85 Entered New Map 82 | . 2 80 . . Time Decay 793 | . 460 268 . 65 Lost Part 60 | . 30 10 . 20 Squads Dispatched 5 | . 5 . . . Investigation 2 | . 2 . . . Extermination . | . . . . . Reinforcement 3 | . 3 . . . Assault . | . . . . . Garrison . | . . . . . Intercept . | . . . . . Searches Triggered . | . . . . . Construction Impeded . | . . . . . Haulers Reinforced . | . . . . . Active Scanning Responses . | . . . . . Cargo Convoy Interrupts . | . . . . . Stealth | -11 -10 -10 -10 -9 --------- Run | Yrd Mat Min Exi Min Distress Signals 4 | . 4 . . . Communications Jammed . | . . . . . Distress Signals . | . . . . . Times Spotted 43 | . 23 15 . 5 Peak Tracking Total 8 | . 4 8 . 3 Tactical Retreats 6 | . 4 2 . . Traps | -11 -10 -10 -10 -9 ------- Run | Yrd Mat Min Exi Min Traps Triggered . | . . . . . Indirectly . | . . . . . Trap Hack Attempts . | . . . . . Triggered . | . . . . . Disarmed . | . . . . . Reprogrammed . | . . . . . Reused . | . . . . . Traps Extracted . | . . . . . Installed . | . . . . . Triggered . | . . . . . Machines | -11 -10 -10 -10 -9 ---------- Run | Yrd Mat Min Exi Min Machines Disabled 5 | . 3 2 . . Max in Single Turn 1 | . 1 1 . . Machines Repaired . | . . . . . Machines Dismantled . | . . . . . Machines Sabotaged . | . . . . . Overloaded Fab Kills . | . . . . . Hacking | -11 -10 -10 -10 -9 --------- Run | Yrd Mat Min Exi Min Machines Accessed 9 | . 7 1 1 . Terminals 6 | . 5 1 . . Fabricators . | . . . . . Repair Stations . | . . . . . Recycling Units 2 | . 2 . . . Scanalyzers . | . . . . . Garrison Access . | . . . . . Total Hacks 17 | . 12 4 1 . Successful 11 | . 9 1 1 . Failed 6 | . 3 3 . . Catastrophic 2 | . 1 1 . . Database Lockouts . | . . . . . Manual 13 | . 9 4 . . Terminals 14 | . 10 4 . . Fabricators . | . . . . . Repair Stations . | . . . . . Recycling Units 2 | . 2 . . . Scanalyzers . | . . . . . Garrison Access . | . . . . . Terminal Hacks 3 | . 1 1 1 . Record 1 | . . . 1 . Part Schematic 1 | . . 1 . . Robot Analysis 1 | . 1 . . . Fabricator Hacks . | . . . . . Repair Station Hacks . | . . . . . Recycling Unit Hacks . | . . . . . Scanalyzer . | . . . . . Garrison Access Hacks . | . . . . . Unauthorized Hacks 8 | . 8 . . . Terminals 6 | . 6 . . . Botnet 1 | . 1 . . . Skim 5 | . 5 . . . Fabricators . | . . . . . Repair Stations . | . . . . . Recycling Units 2 | . 2 . . . Tunnel 2 | . 2 . . . Scanalyzers . | . . . . . Garrison Access . | . . . . . Data Cores Recovered . | . . . . . Used . | . . . . . Hacking Detections 6 | . 5 1 . . Full Trace Events . | . . . . . Feedback Events . | . . . . . Feedback Blocked . | . . . . . Robot Schematics Acquired . | . . . . . Robots Built . | . . . . . Authchips . | . . . . . Time . | . . . . . Total Robot Build Rating . | . . . . . Part Schematics Acquired 1 | . . 1 . . Parts Built . | . . . . . Authchips . | . . . . . Time . | . . . . . Total Part Build Rating . | . . . . . Part Studies Acquired . | . . . . . Parts Repaired . | . . . . . Time . | . . . . . Parts Recycled . | . . . . . Recycled Matter . | . . . . . Retrieved Matter . | . . . . . Retrieved Components . | . . . . . Parts Scanalyzed . | . . . . . Part Schematics Acquired . | . . . . . Parts Damaged . | . . . . . Bothacking | -11 -10 -10 -10 -9 ------------ Run | Yrd Mat Min Exi Min Used RIF Installer . | . . . . . Robots Hacked . | . . . . . Non-combat . | . . . . . Combat . | . . . . . Robot Hacks Applied . | . . . . . Relay Couplers Released . | . . . . . Fabnet Peak Effective % . | . . . . . Robots Rewired . | . . . . . Allies Hacked . | . . . . . Hacks Repelled . | . . . . . Allies | -11 -10 -10 -10 -9 -------- Run | Yrd Mat Min Exi Min Total Allies . | . . . . . Largest Group . | . . . . . Highest-Rated Group . | . . . . . Highest-Rated Ally . | . . . . . Total Orders . | . . . . . Ally Attacks . | . . . . . Total Damage . | . . . . . Kills . | . . . . . Allies Corrupted . | . . . . . Allies Melted . | . . . . . Intel | -11 -10 -10 -10 -9 ------- Run | Yrd Mat Min Exi Min Active Infowar (turns) . | . . . . . Robot Analysis Total 1 | . 1 . . . Derelict Logs Recovered 2 | . . 2 . . Drone Launches . | . . . . . Drone Recoveries . | . . . . . Exploration | -11 -10 -10 -10 -9 ------------- Run | Yrd Mat Min Exi Min Turns Passed 3605 | 100 1576 1081 479 369 Spaces Moved 1460 | 57 665 414 200 124 Core 4 | 4 . . . . Treads 1456 | 53 665 414 200 124 Legs . | . . . . . Wheels . | . . . . . Hover . | . . . . . Flight . | . . . . . Fastest Speed 50 | 50 160 240 240 240 Average Speed 216 | 152 196 240 240 240 Slowest Speed 240 | 160 240 240 240 240 Overloaded Moves . | . . . . . Propulsion Burnouts . | . . . . . Robots Hopped . | . . . . . Potential Cave-ins 3 | . . 3 . . Cave-ins Triggered . | . . . . . Exploration Rate (%) 53 | 4 97 84 60 23 Regions Visited 4 Branch Regions 3 Pre-discovered Areas 4 | . 2 1 1 . Known Exits Taken . | . . . . . Unknown Exits Taken 4 | 1 1 1 1 . Scrap Searched 3 | . . 1 . 2 Spaces Dug 1 | . 1 . . . Terrain Destroyed 36 | . 24 12 . . Melee 1 | . 1 . . . Projectile . | . . . . . AOE 35 | . 23 12 . . Terrain Rammed . | . . . . . Walls Destroyed . | . . . . . Machines Disabled . | . . . . . Actions | -11 -10 -10 -10 -9 --------- Run | Yrd Mat Min Exi Min Total 1685 | 67 804 457 200 157 Wait 41 | . 33 7 . 1 Move 1457 | 57 664 413 199 124 Hop . | . . . . . Pick Up 27 | 4 16 4 1 2 Fast Attach 12 | 6 4 . . 2 Attach 12 | . 3 4 . 5 Detach 4 | . 3 . . 1 Swap 10 | . 4 5 . 1 Drop 7 | . 7 . . . Fire 101 | . 67 22 . 12 Melee 10 | . 1 . . 9 Ram . | . . . . . Kick . | . . . . . Crush 4 | . 2 2 . . Escape Stasis . | . . . . . Rewire . | . . . . . Trap . | . . . . . Miscellaneous . | . . . . . Route ------- -11/Scrapyard -10/Materials (discovered 6 exits: [*Mat x3] / *Min x2 / [*Sub]) -10/Mines (discovered 2 exits: [*Mat] / *Exi) -10/Exiles -9/Mines History --------- Turn | Location | Event 5 | -11/Scrapyard | Discovered new exit (range 16) 101 | -11/Scrapyard | Entered Materials 102 | -10/Materials | Met a group of wandering Federalists 312 | -10/Materials | Build established: Mutant 581 | -10/Materials | Discovered new exit (range 10) 877 | -10/Materials | Discovered new exit (range 3) 901 | -10/Materials | Discovered new exit (range 16) 1014 | -10/Materials | Discovered new exit (range 10) 1078 | -10/Materials | Discovered new exit (range 6) 1093 | -10/Materials | Discovered new exit (range 4) 1312 | -10/Materials | Core integrity fell below 50% 1677 | -10/Materials | Entered Mines 1699 | -10/Mines | Received a Rocket Launcher from a helpful Derelict 1930 | -10/Mines | Learned Materials trap positions 2132 | -10/Mines | Deemed a non-threat by the Exiles lab entrance 2469 | -10/Mines | Assembled infested the area 2474 | -10/Mines | Assisted by a Guerilla fighting off Assembled 2529 | -10/Mines | Lost 5 parts (2n1u2w) 2550 | -10/Mines | Learned location of Zion (-6) 2564 | -10/Mines | Discovered new exit (range 9) 2748 | -10/Mines | Discovered new exit (range 5) 2758 | -10/Mines | Entered Exiles 2818 | -10/Exiles | Met 8R-AWN 2857 | -10/Exiles | Met EX-HEX 2926 | -10/Exiles | Met EX-BIN 2960 | -10/Exiles | Met EX-DEC 3213 | -10/Exiles | Discovered new exit (range 11) 3237 | -10/Exiles | Entered Mines 3280 | -9/Mines | Met a Derelict bent on vengeance 3565 | -9/Mines | Core integrity fell below 20% 3606 | -9/Mines | Destroyed by G-34 Mercenary with Small Laser Last Messages --------------- 03433_ System corrupted: Beam Cannon misfires. 03466_ >D5N 03583_ Lgt. Armor Plating destroyed. 03584_ Rnf. Ion Engine severed. 03586_ Lgt. Treads destroyed. 03588_ 1S&8EUAHXQ9DJJ>|>P0E57XAOE C 03589_ L-31 Rogue destroyed. 03597_ Acquired 19 matter. 03604_ G-34 Mercenary suffers critical hit (Smash). 03604_ Destroyed Heat Sink. 03604_ G-34 Mercenary system corrupted by crushing effect. Map ----- +----------------------------------------------------+ | ??????# ##?# #### #???????? | | ??????## #### ##??# #???????? | | ???????## #?## ##???# #???????? | | ???????## #??########## #### | | ???##### ##?????# !% # | | ??## ! ##??????# * #? | | ??# ! #####???# ############ #? | | ?## ###?????????????????? | | ?# ##????????????????? | | ?# #????????????????? | | ?# ### ?????????????? | | ?# ##???# ????????????? | | ?## ### ##?????? ??###??#?????? | | ??###??## ##??????????? ## #?????? | | ????????# ##???????????? ??????? | | ????????#%#????????????? ???????? | | ????????#|#??????####?? #????????? | | ????????# ######## ##? #?????????? | | ????????# ## #??????????? | | ????????# #????????????? | | ????????######## #????????????? | | ???????????##### #????????????? | | ???????????# ##???????????? | | ???????????# #### % #???????????? | | ???????????#g#??## #???????????? | | ?? """ ####@##### #???????????? | | ?? """ =g ##???????????? | | ?# ######### ### #????????????? | | ????????????????# ??? #????????????? | | ????????????????# ??? #????????????? | | ????????????????# ??? #????????????? | | ????????????????# ??? #????????????? | | ????????????????? ??? #????????????? | | ????????????????? ??? #????????????? | | ????????????????? ??? #????????????? | | ?????????????????????? ????????????? | | ?????????????????????? ????????????? | | ??????????????????????##????????????? | | ????????????????????????????????????? | | ????????????????????????????????????? | | ????????????????????????????????????? | | ????????????????????????????????????? | | ????????????????????????????????????? | | ????????????????????????????????????? | | ????????????????????????????????????? | | ????????????????????????????????????? | | ????????????????????????????????????? | | ????????????????????????????????????? | | ????????????????????????????????????? | | ????????????????????????????????????? | +----------------------------------------------------+ Best States ------------- Heat Dissipation 35 Energy Generation 12 Energy Capacity 265 Matter Stores 300 Matter Capacity 300 Sight Range 16 Terrain Scan Density 10 Armor Coverage 150 Evasion (%) 40 Recoil Reduction 2 Item Schematics ----------------- Huge Storage Unit | -10/Mines | Hacked Robot Schematics ------------------ None Fabricated ------------ Nothing Repaired ---------- Nothing Studied --------- None Alien Tech Used ----------------- None Achievements -------------- None Challenges ------------ None Game ------ Seed BurstOmegaAirjet Manual? 0 Play Time 00:16:58 Cumulative 283.0 hours Start 2026.01.25 @ 09:15:55 End 2026.01.25 @ 09:33:11 Sessions 1 Manual Loads 0 Difficulty Rogue Special Mode None Game No. 116 Rogue 116 Adventurer 0 Explorer 0 Win Type - Total 28 Types 10/4/6/2/1/0/0/2/1/2 Lore% 81 Gallery% 78 Achievement% 64 Wizard Run 0 Options --------- Layout 0 ASCII 0 Keyboard 1 Movement Vi Keybinds 0 Fullscreen 2 Font 18/SmallcapsGlow Map View 76x50 Zoom Use 0% Tactical HUD 1 Map Filters NONE Filters NONE Steam 1 RUN: 49c7e5c6-58f2-41ff-8030-8dacf197ca4f